Cogmind - Beta 15 @@@ ROGUE MODE // 2025.07.11 @ 22:34:28 Player: Inverisimilidude Result: Destroyed by Y-45 Defender with Beam Rifle Performance ------------- Evolutions (0) 0 Regions Visited (3) 600 Robots Destroyed (12) 60 Value Destroyed (435) 435 Prototype IDs (0) 0 Alien Tech Used (0) 0 Bonus (0) 0 TOTAL SCORE: 1095 Bonus ------- None Cogmind --------- Core Integrity 0/250 Matter 258/300 Energy 125/125 System Corruption 0% Temperature Cool (9) Movement Walking (120) Location -10/Subcaves Parts ------- > --- POWER (1) -------- Light Ion Engine > --- PROPULSION (2) --- Aluminum Leg Aluminum Leg > --- UTILITY (2) ------ Small Storage Unit Signal Interpreter > --- WEAPON (2) ------- Subdweller Laser Battle Cannon > --- INVENTORY (8) ---- Light Treads Subdweller Monowheel Disposable Heat Sink Subdweller Optics Assault Rifle Subdweller Machine Gun Peak State ------------ > --- POWER ------------ Subdweller Power Source > --- PROPULSION ------- Aluminum Leg Aluminum Leg > --- UTILITY ---------- Small Storage Unit Signal Interpreter > --- WEAPON ----------- Assault Rifle Slug Cannon > --- INVENTORY -------- Light Ion Engine Light Treads Light Treads Aluminum Leg Aluminum Leg Subdweller Monowheel Subdweller Optics Subdweller Laser [Rating: 12] Favorites ----------- Power Light Ion Engine Engine Light Ion Engine Propulsion Aluminum Leg Treads Light Treads Leg Aluminum Leg Utility Small Storage Unit Device Heat Sink Storage Small Storage Unit Processor Signal Interpreter Weapon Light Assault Rifle Energy Gun Subdweller Laser Ballistic Gun Light Assault Rifle Ballistic Cannon Battle Cannon Build | -11 -10 -10 -10 ------- Run | Yrd Mat Min Sub Slots Evolved . | . . . . Power . | . . . . Propulsion . | . . . . Utility . | . . . . Weapon . | . . . . Parts Attached 23 | 6 7 . 10 Power 5 | 1 2 . 2 Engine 5 | 1 2 . 2 Core . | . . . . Reactor . | . . . . Propulsion 8 | 2 2 . 4 Treads 2 | . . . 2 Leg 6 | 2 2 . 2 Wheel . | . . . . Hover . | . . . . Flight . | . . . . Utility 4 | 1 3 . . Device 1 | . 1 . . Storage 2 | 1 1 . . Processor 1 | . 1 . . Hackware . | . . . . Protection . | . . . . Artifact . | . . . . Weapon 6 | 2 . . 4 Energy Gun 1 | . . . 1 Energy Cannon . | . . . . Ballistic Gun 3 | 2 . . 1 Ballistic Cannon 2 | . . . 2 Launcher . | . . . . Special Weapon . | . . . . Impact Weapon . | . . . . Slashing Weapon . | . . . . Piercing Weapon . | . . . . Special Melee Weapon . | . . . . Unidentified Prototypes . | . . . . Parts Lost 5 | . . . 5 Power . | . . . . Propulsion 3 | . . . 3 Utility . | . . . . Weapon 2 | . . . 2 Highest Loss Streak 2 | . . . 2 To Critical Strikes . | . . . . Average Backups 6 | 5 7 8 5 Power . | . 1 1 . Propulsion 3 | 3 5 6 2 Utility . | . . . 1 Weapon 1 | . 1 1 1 Tool/Special . | . . . . Unused Backups 8 | . 2 . 6 Power . | . . . . Propulsion 5 | . 2 . 3 Utility 2 | . . . 2 Weapon 1 | . . . 1 Tool/Special . | . . . . Average Slot Usage (%) 98 | . 92 100 99 Engine 14 | . 14 14 14 Treads 4 | . . . 5 Leg 23 | . 28 28 22 Storage 14 | . 14 14 14 Processor 12 | . 4 14 14 Energy Gun 7 | . . . 10 Ballistic Gun 16 | . 28 28 12 Ballistic Cannon 3 | . . . 4 Peak Build Rating 12 | 6 7 7 12 Average Rating 6 | 5 6 7 9 On Entrance 5 | . 6 7 7 Naked Turns . | . . . . Heaviest Build 19 | 10 13 12 19 Greatest Support 40 | 20 20 20 40 Greatest Overweight (x) 1 | 1 . . 1 Average Overweight (x) . | . . . . Largest Inventory Capacity 8 | 8 8 8 8 Average Capacity 7 | 7 8 8 8 Most Carried 8 | 6 8 8 8 Average Carried 6 | 5 7 8 5 Final Capacity 8 | 8 8 8 8 Final Carried 8 | 6 8 8 6 Class Distribution -------------------- 98% | Mutant Dominant Class ---------------- Mutant | -10/Materials Mutant | -10/Mines Mutant | -10/Subcaves Resources | -11 -10 -10 -10 ----------- Run | Yrd Mat Min Sub Matter Collected 573 | 260 108 . 205 Remotely . | . . . . Salvage Created 493 | . 233 . 260 Parts 31 | . 14 . 17 Haulers Intercepted . | . . . . Recyclers Shooed . | . . . . Parts Field Recycled . | . . . . Retrieved Matter . | . . . . Parts Self-Destructed . | . . . . Prevented . | . . . . Kills | -11 -10 -10 -10 ------- Run | Yrd Mat Min Sub Combat Hostiles Destroyed 11 | . 4 . 7 Guns 10 | . 4 . 6 Cannons 1 | . . . 1 Classes Destroyed 3 | . 2 . 1 Recycler 1 | . 1 . . Grunt 4 | . 4 . . Subdweller 7 | . . . 7 Best Kill Streak 3 | . 3 . 3 Combat Bots Only 3 | . 2 . 3 Max Kills in Single Turn 1 | . 1 . 1 Gunslinging . | . . . . Exploded . | . . . . Melee . | . . . . Uniques/NPCs Destroyed . | . . . . Combat | -11 -10 -10 -10 -------- Run | Yrd Mat Min Sub Hostile Shots Fired 94 | . 28 . 66 Missed 25 | . 4 . 21 Hits 69 | . 24 . 45 Projectile 69 | . 24 . 45 Damage Taken 1264 | . 313 . 951 Core 263 | . 82 . 181 Absorbed by Shields . | . . . . Core Remaining (%) 100 | 100 . . . Volleys Fired 48 | . 19 . 29 Largest 2 | . 2 . 2 Hottest 80 | . 40 . 80 Shots Fired 95 | . 38 . 57 Gun 85 | . 38 . 47 Cannon 10 | . . . 10 Launcher . | . . . . Special . | . . . . Kinetic 88 | . 38 . 50 Thermal 7 | . . . 7 Explosive . | . . . . Electromagnetic . | . . . . Robot Hit Streak 10 | . 9 . 10 Robot Miss Streak 2 | . 2 . 2 Penetration Max . | . . . . Secondary Targets 2 | . 1 . 1 Max Gunslinging Chain 1 | . 1 . 1 Shots Hit Robots 70 | . 30 . 40 Core Hits 29 | . 14 . 15 Critical Kills 1 | . . . 1 Critical Parts Destroyed 1 | . . . 1 Critical Strikes 2 | . . . 2 Destroy 2 | . . . 2 Melee Attacks . | . . . . Impact . | . . . . Slashing . | . . . . Piercing . | . . . . Sneak Attacks . | . . . . Combat Hostiles . | . . . . Follow-up Attacks . | . . . . Damage Inflicted 786 | . 271 . 515 Guns 664 | . 271 . 393 Cannons 122 | . . . 122 Explosions . | . . . . Melee . | . . . . Ramming . | . . . . Kinetic 707 | . 271 . 436 Thermal 79 | . . . 79 Explosive . | . . . . Electromagnetic . | . . . . Impact . | . . . . Slashing . | . . . . Piercing . | . . . . Highest Corruption . | . . . . Average Corruption . | . . . . Corruption Purged . | . . . . Corruption Blocked . | . . . . Overload Shots . | . . . . Overflow Damage . | . . . . Projectiles . | . . . . Explosions . | . . . . Melee . | . . . . Knockbacks 2 | . . . 2 Impact . | . . . . Kinetic 2 | . . . 2 Secondary . | . . . . Self-Inflicted Damage . | . . . . Shots . | . . . . Rammed . | . . . . Targets Rammed . | . . . . Kicked . | . . . . Crushed . | . . . . Highest Temperature 40 | . 40 . . Average Temperature 14 | . 14 . . Received Heat Transfer 273 | . 159 . 114 Siege Activations . | . . . . Martial Activations . | . . . . Shielding Activations . | . . . . Robots Disrupted . | . . . . Combat Hostiles . | . . . . Robots Corrupted . | . . . . Combat Hostiles . | . . . . Parts Fried . | . . . . Impact Corruptions . | . . . . Robots Melted . | . . . . Combat Hostiles . | . . . . Parts Melted . | . . . . Heat Transferred 100 | . . . 100 Parts Sabotaged . | . . . . Parts Stolen . | . . . . Parts Stripped . | . . . . Power Chain Reactions . | . . . . Alert | -11 -10 -10 -10 ------- Run | Yrd Mat Min Sub Maximum Alert Level . | . . . . Low Security (%) 100 | 100 100 100 . Level 1 . | . . . . Level 2 . | . . . . Level 3 . | . . . . Level 4 . | . . . . Level 5 . | . . . . High Security . | . . . . Max Security . | . . . . Peak Influence 55 | . 55 . . Initial . | . . . . Average . | . 15 . . Influence Increases 110 | . 95 . 15 Destroy 0b10 Robot/C 80 | . 80 . . Destroy 0b10 Robot/NC 5 | . 5 . . Destroy Leader 10 | . 10 . . Lose Combat Pursuer 15 | . . . 15 Influence Decreases 110 | . 95 . 15 Time Decay 110 | . 95 . 15 Squads Dispatched . | . . . . Investigation . | . . . . Extermination . | . . . . Reinforcement . | . . . . Assault . | . . . . Garrison . | . . . . Intercept . | . . . . Searches Triggered . | . . . . Construction Impeded . | . . . . Haulers Reinforced . | . . . . Active Scanning Responses . | . . . . Cargo Convoy Interrupts . | . . . . Stealth | -11 -10 -10 -10 --------- Run | Yrd Mat Min Sub Distress Signals . | . . . . Communications Jammed . | . . . . Distress Signals . | . . . . Times Spotted 22 | . 9 . 13 Peak Tracking Total 4 | . 4 . 4 Tactical Retreats 5 | . . . 5 Traps | -11 -10 -10 -10 ------- Run | Yrd Mat Min Sub Traps Triggered 1 | . 1 . . Indirectly . | . . . . Trap Hack Attempts . | . . . . Triggered . | . . . . Disarmed . | . . . . Reprogrammed . | . . . . Reused . | . . . . Traps Extracted . | . . . . Installed . | . . . . Triggered . | . . . . Machines | -11 -10 -10 -10 ---------- Run | Yrd Mat Min Sub Machines Disabled . | . . . . Max in Single Turn . | . . . . Machines Repaired . | . . . . Machines Dismantled . | . . . . Machines Sabotaged . | . . . . Overloaded Fab Kills . | . . . . Hacking | -11 -10 -10 -10 --------- Run | Yrd Mat Min Sub Machines Accessed . | . . . . Terminals . | . . . . Fabricators . | . . . . Repair Stations . | . . . . Recycling Units . | . . . . Scanalyzers . | . . . . Garrison Access . | . . . . Total Hacks . | . . . . Successful . | . . . . Failed . | . . . . Catastrophic . | . . . . Database Lockouts . | . . . . Manual . | . . . . Terminals . | . . . . Fabricators . | . . . . Repair Stations . | . . . . Recycling Units . | . . . . Scanalyzers . | . . . . Garrison Access . | . . . . Terminal Hacks . | . . . . Fabricator Hacks . | . . . . Repair Station Hacks . | . . . . Recycling Unit Hacks . | . . . . Scanalyzer . | . . . . Garrison Access Hacks . | . . . . Unauthorized Hacks . | . . . . Terminals . | . . . . Fabricators . | . . . . Repair Stations . | . . . . Recycling Units . | . . . . Scanalyzers . | . . . . Garrison Access . | . . . . Data Cores Recovered . | . . . . Used . | . . . . Hacking Detections . | . . . . Full Trace Events . | . . . . Feedback Events . | . . . . Feedback Blocked . | . . . . Robot Schematics Acquired . | . . . . Robots Built . | . . . . Authchips . | . . . . Time . | . . . . Total Robot Build Rating . | . . . . Part Schematics Acquired . | . . . . Parts Built . | . . . . Authchips . | . . . . Time . | . . . . Total Part Build Rating . | . . . . Parts Repaired . | . . . . Time . | . . . . Parts Recycled . | . . . . Recycled Matter . | . . . . Retrieved Matter . | . . . . Retrieved Components . | . . . . Parts Scanalyzed . | . . . . Part Schematics Acquired . | . . . . Parts Damaged . | . . . . Bothacking | -11 -10 -10 -10 ------------ Run | Yrd Mat Min Sub Used RIF Installer . | . . . . Robots Hacked . | . . . . Non-combat . | . . . . Combat . | . . . . Robot Hacks Applied . | . . . . Relay Couplers Released . | . . . . Fabnet Peak Effective % . | . . . . Robots Rewired . | . . . . Allies Hacked . | . . . . Hacks Repelled . | . . . . Allies | -11 -10 -10 -10 -------- Run | Yrd Mat Min Sub Total Allies . | . . . . Largest Group . | . . . . Highest-Rated Group . | . . . . Highest-Rated Ally . | . . . . Total Orders . | . . . . Ally Attacks . | . . . . Total Damage . | . . . . Kills . | . . . . Allies Corrupted . | . . . . Allies Melted . | . . . . Intel | -11 -10 -10 -10 ------- Run | Yrd Mat Min Sub Active Infowar (turns) . | . . . . Robot Analysis Total . | . . . . Derelict Logs Recovered . | . . . . Drone Launches . | . . . . Drone Recoveries . | . . . . Exploration | -11 -10 -10 -10 ------------- Run | Yrd Mat Min Sub Turns Passed 16852 | 14260 354 324 1914 Spaces Moved 3194 | 1370 230 268 1326 Core 6 | 6 . . . Treads 436 | . . . 436 Legs 2752 | 1364 230 268 890 Wheels . | . . . . Hover . | . . . . Flight . | . . . . Fastest Speed 50 | 50 120 120 120 Average Speed 126 | 119 120 120 135 Slowest Speed 190 | 120 120 120 190 Overloaded Moves . | . . . . Propulsion Burnouts . | . . . . Robots Hopped . | . . . . Potential Cave-ins . | . . . . Cave-ins Triggered . | . . . . Exploration Rate (%) 62 | 107 43 48 52 Regions Visited 3 Branch Regions 2 Pre-discovered Areas . | . . . . Known Exits Taken 2 | . 1 1 . Unknown Exits Taken 1 | 1 . . . Scrap Searched 5 | . . 2 3 Spaces Dug . | . . . . Terrain Destroyed 4 | . . . 4 Melee . | . . . . Projectile 4 | . . . 4 AOE . | . . . . Terrain Rammed . | . . . . Walls Destroyed . | . . . . Machines Disabled . | . . . . Actions | -11 -10 -10 -10 --------- Run | Yrd Mat Min Sub Total 15927 | 13985 281 270 1391 Wait 12633 | 12604 14 3 12 Move 3191 | 1369 229 267 1326 Hop . | . . . . Pick Up 16 | 6 4 . 6 Fast Attach 10 | 6 3 . 1 Attach 6 | . . . 6 Detach 1 | . . . 1 Swap 9 | . 4 . 5 Drop 13 | . 8 . 5 Fire 48 | . 19 . 29 Melee . | . . . . Ram . | . . . . Kick . | . . . . Crush . | . . . . Escape Stasis . | . . . . Rewire . | . . . . Trap . | . . . . Miscellaneous . | . . . . Route ------- -11/Scrapyard -10/Materials (discovered 2 exits: *Mat / *Min) -10/Mines (discovered 2 exits: *Exi / *Sub) -10/Subcaves (discovered 1 exit: *Mat) History --------- Turn | Location | Event 13 | -11/Scrapyard | Discovered new exit (range 15) 14261 | -11/Scrapyard | Entered Materials 14262 | -10/Materials | Build established: Mutant 14293 | -10/Materials | Discovered new exit (range 13) 14549 | -10/Materials | Identified exit to Materials 14604 | -10/Materials | Discovered new exit (range 10) 14613 | -10/Materials | Identified exit to Mines 14615 | -10/Materials | Entered Mines 14735 | -10/Mines | Deemed a non-threat by the Exiles lab entrance 14737 | -10/Mines | Discovered new exit (range 5) 14740 | -10/Mines | Identified exit to Exiles 14904 | -10/Mines | Discovered new exit (range 8) 14911 | -10/Mines | Identified exit to Subcaves 14939 | -10/Mines | Entered Subcaves 15086 | -10/Subcaves | Core integrity fell below 50% 15173 | -10/Subcaves | Discovered new exit (range 9) 15182 | -10/Subcaves | Identified exit to Materials 15195 | -10/Subcaves | Disturbed a concealed Subdweller 15422 | -10/Subcaves | Ambushed by Subdweller buried in earth 15453 | -10/Subcaves | Core integrity fell below 20% 16371 | -10/Subcaves | Shifting Twisted Machinery released Battle Cannon 16384 | -10/Subcaves | Shifting Twisted Machinery released Sub. Beam Cannon 16447 | -10/Subcaves | Shifting Twisted Machinery released Flamer 16536 | -10/Subcaves | Shifting Twisted Machinery released Shrapnel Trap 16853 | -10/Subcaves | Destroyed by Y-45 Defender with Beam Rifle Last Messages --------------- 15905_ Sub. Power Source shoots sparks and powers down. 16202_ Subatomizers dissect the Sub. Monowheel. 16243_ Dropped Broken Sub. Power Source. 16253_ Subatomizers dissect the Broken Sub. Power Source. 16319_ XB-KO8(R) destroyed. 16327_ Acquired 32 matter. 16337_ Acquired Disposable Heat Sink. 16370_ Acquired Battle Cannon. Battle Cannon falls loose from the Twisted Machinery. Sub. Beam Cannon falls loose from the Twisted Machinery. Flamer falls loose from the Twisted Machinery. Shrapnel Trap falls loose from the Twisted Machinery. 16585_ H3-GZH(u) deconstructs Twisted Machinery. Map ----- +----------------------------------------------------+ | ????????????????????????????????????????????? | | ????????????????????????????????????????????? | | ????????????????????????????????????????????? | | ????????????????????????????????????????????? | | ????????????????????????????????????????????? | | ????????????????????????????????????????????? | | ????????????????? #?????????????????????????? | | ????????????????? ###? ????????????????????? | | ????????????????? ## ?????????????????? | | ????????????????? #???????????###?? | | ????????????????? #???????????# ### | | ?????????????????# ????????????# # | | ????????????????## ??###???????## ## | | ????????????????# ?? ???????## #? | | ???????????????? ## ???????# ## | | ????????????????# ????????## | | ????????????????# #?????????# | | ????????????????# ??????##### | | ????????????????# ???????## # | | ???????????????## ?????##### ## | | ???????????????# #??????# ## | | ???????????????# ##????### # | | ???????????????## #???## ### | | ????????????????## ##???# ### | | ?????????????????# Y##???# | | ?????????????????## @###?#### | | ?????????????????# # ##??## ### | | ?????????????????## #?## ###?# ## | | ??????????????????### #?# #??## ### | | ????????????????????# #### ##?# ### | | ????????????????????# # #?# | | ???????????????????## #?## | | ??????????????????## #??## ## | | ??????????????????# ### ##???# ## | | ??????????????????## ##?# ###????# # | | ???????????????????# #?## #??????## | | ???????????????????## #### ########## | | ????????????????????## ### ## ## # | | ?????????????????##### | # | | ????????????????## " ## | | ????????????????# ""### ## #? | | ???????????????# "##?# #### ##? | | ???????????????# ### "##?## ##??####?? | | ???????????????# #??#"##??# #????????? | | ???????????????# #???#### ?### #????????? | | ???????????????###??????# "??## ##???????? | | ?????????????????????????#"" ??# ##??????? | | ???????????????????????###" ?## #??????? | | ??????????????????????# "" ?# #??????? | | ??????????????????????#&" ## ###??????? | +----------------------------------------------------+ Best States ------------- Heat Dissipation 35 Energy Generation 15 Energy Capacity 250 Matter Stores 300 Matter Capacity 350 Sight Range 16 Terrain Scan Density 10 Evasion (%) 55 Recoil Reduction 2 Item Schematics ----------------- None Robot Schematics ------------------ None Fabricated ------------ Nothing Repaired ---------- Nothing Alien Tech Used ----------------- None Achievements -------------- None Challenges ------------ None Game ------ Seed ThrowingPrecisionFacilitator Manual? 0 Play Time 00:25:44 Cumulative 39.8 hours Start 2025.07.11 @ 21:55:05 End 2025.07.11 @ 22:34:28 Sessions 1 Manual Loads 0 Difficulty Rogue Special Mode None Game No. 51 Rogue 51 Adventurer 0 Explorer 0 Win Type - Total 0 Types 0/0/0/0/0/0/0/0/0/0 Lore% 27 Gallery% 28 Achievement% 28 Wizard Run 0 Options --------- Layout 1 ASCII 0 Keyboard 0 Movement Arrows Keybinds 0 Fullscreen 1 Font 24/Smallcaps Map View 50x35 Zoom Use 0% Tactical HUD 1 Map Filters NONE Filters NONE Steam 1 RUN: 2cfa6557-9476-4dd9-b704-b96970fd300b